bitfinex/quotes_BTCUSD_20251219
["timestamp","ask_amount","ask_price","bid_price","bid_amount"]
[1766111487629,0.58365,85635.0,85619.0,0.04676]
[1766111487830,0.07608828,85644.0,85619.0,0.04676]
[1766111487831,0.58365,85629.0,85620.0,0.00588]
[1766111488155,0.07608828,85644.0,85620.0,0.00588]
[1766111488156,0.00588,85636.0,85629.0,0.001099]
[1766111488483,0.04676,85648.0,85619.0,0.04676]
[1766111488484,0.49058,85657.0,85637.0,0.57631]
[1766111488678,0.00588,85657.0,85642.0,1.04318]
[1766111488835,0.00588,85657.0,85643.0,0.46687]
[1766111489044,0.07020828,85654.0,85629.0,0.00036721]
[1766111489223,1.07423,85656.0,85630.0,0.00588]
[1766111489424,0.49058,85653.0,85633.0,1.04318]
[1766111489668,1.07423,85651.0,85633.0,1.04318]
[1766111489987,0.00588,85652.0,85635.0,0.46687]
[1766111490184,0.00588,85652.0,85636.0,0.00588]
[1766111491214,0.00588,85652.0,85637.0,0.46687]
[1766111491377,0.00588,85652.0,85636.0,0.47275]
[1766111491580,0.00588,85652.0,85637.0,0.46687]
[1766111491785,0.49058,85656.0,85641.0,0.46687]
[1766111491786,0.49646,85656.0,85641.0,0.46687]
[1766111492008,0.49646,85656.0,85642.0,0.00588]
[1766111492771,0.49646,85656.0,85642.0,0.47275]
[1766111493010,0.00588,85661.0,85647.0,0.46687]
[1766111493209,0.00588,85661.0,85647.0,1.04318]
[1766111493409,0.00588,85666.0,85649.0,0.10730223]
[1766111493734,0.58365,85665.0,85650.0,1e-08]
[1766111493939,0.49646,85666.0,85651.0,1e-08]
[1766111494253,0.00588,85668.0,85651.0,1e-08]
[1766111494446,0.58365,85673.0,85651.0,1e-08]
[1766111494649,0.58365,85663.0,85651.0,1e-08]
[1766111494772,0.49058,85664.0,85651.0,1e-08]
[1766111494773,0.07020828,85671.0,85651.0,1e-08]
[1766111494978,0.49058,85670.0,85651.0,1e-08]
[1766111495228,0.58365,85665.0,85651.0,1e-08]
[1766111495537,0.49058,85661.0,85651.0,1e-08]
[1766111495738,0.58365,85658.0,85651.0,1e-08]
[1766111495966,1.07423,85657.0,85651.0,1e-08]
[1766111496098,0.58365,85656.0,85651.0,1e-08]
[1766111496305,0.49058,85661.0,85651.0,1e-08]
[1766111496306,0.58365,85660.0,85651.0,1e-08]
[1766111496486,0.58365,85654.0,85641.0,0.07020828]
[1766111496691,1.07423,85654.0,85642.0,0.00588]
[1766111497087,0.58365,85653.0,85642.0,0.00588]
[1766111497554,0.49058,85648.0,85640.0,0.00588]
[1766111497738,0.08188084,85671.0,85640.0,0.00588]
[1766111497739,0.58365,85645.0,85640.0,0.00588]
[1766111498518,0.58365,85645.0,85630.0,0.65101578]
[1766111498519,0.58365,85645.0,85639.0,0.00588]
[1766111498739,0.58365,85645.0,85637.0,0.00588]
[1766111498955,0.58365,85642.0,85634.0,0.00588]
[1766111499364,0.04676,85661.0,85629.0,0.04712721]
[1766111499365,0.49058,85641.0,85629.0,0.00036721]
[1766111499560,0.04676,85661.0,85629.0,0.00624721]
[1766111499561,0.58365,85636.0,85629.0,0.00624721]
[1766111500471,0.49058,85637.0,85629.0,0.00624721]
[1766111501025,0.0907,85645.0,85629.0,0.47311721]
[1766111501577,0.67435,85645.0,85629.0,0.47311721]
[1766111502008,0.67435,85643.0,85629.0,0.47311721]
[1766111502178,0.58365,85639.0,85629.0,0.00624721]
[1766111502385,0.58365,85637.0,85629.0,0.00624721]
[1766111503614,0.0907,85643.0,85629.0,0.00624721]
[1766111504026,0.0907,85643.0,85630.0,0.63933763]
[1766111505249,0.38005529,85645.0,85630.0,1.09357763]
[1766111505614,0.00588,85647.0,85631.0,0.90511]
[1766111506205,0.57709,85646.0,85631.0,0.45424]
[1766111506995,0.57709,85646.0,85629.0,0.00624721]
[1766111507365,0.57709,85640.0,85629.0,0.00624721]
[1766111507567,0.48565,85635.0,85622.0,0.00588]
[1766111507904,1.06274,85634.0,85622.0,0.00599009]
[1766111508432,0.00588,85639.0,85622.0,0.47190933]
[1766111508902,0.58297,85639.0,85623.0,0.0116791]
[1766111509091,0.58297,85639.0,85623.0,0.24526034]
[1766111509302,0.57709,85637.0,85622.0,0.00599009]
[1766111509519,0.57709,85636.0,85622.0,0.00599009]
[1766111510036,0.48565,85634.0,85622.0,0.00599009]
[1766111510212,0.57709,85633.0,85622.0,0.00599009]
[1766111510414,0.00588,85639.0,85622.0,0.00599009]
[1766111510615,0.00588,85639.0,85625.0,0.45424]
[1766111511163,0.00588,85639.0,85622.0,0.45686009]
[1766111511164,0.48565,85643.0,85628.0,0.01167842]
[1766111511351,0.00588,85642.0,85629.0,0.00588]
[1766111511560,0.00588,85642.0,85630.0,0.7092853]
[1766111511914,0.00588,85642.0,85630.0,0.00588]
[1766111513534,0.04676,85654.0,85630.0,0.00588]
[1766111513535,0.04676,85663.0,85642.0,0.001099]
[1766111513768,0.57709,85657.0,85643.0,0.45424]
[1766111513978,0.00588,85656.0,85643.0,0.45424]
[1766111514573,0.58297,85656.0,85643.0,0.45424]
[1766111514777,0.57709,85647.0,85631.0,1e-08]
[1766111515020,0.48565,85643.0,85632.0,0.00588]
[1766111515211,0.57709,85642.0,85632.0,0.00588]
[1766111516036,0.48565,85639.0,85629.0,0.23356526]
[1766111516223,0.57709,85636.0,85631.0,0.00588]
[1766111516580,0.57590782,85636.0,85631.0,0.00588]
[1766111516782,0.48565,85646.0,85631.0,0.01755801]
[1766111516954,0.48565,85646.0,85633.0,0.01167774]
[1766111517129,0.48565,85646.0,85635.0,0.01167746]
[1766111518158,0.48565,85646.0,85632.0,0.01167787]
[1766111518526,0.57709,85645.0,85634.0,0.0116776]
[1766111519250,0.57709,85644.0,85633.0,0.01167774]
[1766111519448,0.57709,85644.0,85632.0,0.01167787]
[1766111519692,0.57709,85644.0,85634.0,0.0116776]
[1766111519900,0.00588,85648.0,85639.0,0.01167692]
[1766111520101,0.00588,85648.0,85638.0,0.24521822]
[1766111520311,0.00588,85648.0,85639.0,0.0140123]
[1766111520503,0.00588,85648.0,85638.0,0.24521796]
[1766111520659,0.00588,85648.0,85640.0,0.01401214]
[1766111521066,0.00588,85648.0,85638.0,0.01167705]
[1766111521285,0.48565,85649.0,85637.0,0.01755719]
[1766111521715,0.57709,85648.0,85637.0,0.00588]
[1766111521926,0.48565,85647.0,85637.0,0.01755719]
[1766111522132,0.57709,85644.0,85638.0,0.01167705]
[1766111522342,0.0907,85663.0,85639.0,0.0140123]
[1766111522553,0.0907,85660.0,85643.0,0.01167637]
[1766111522789,0.0907,85658.0,85642.0,0.2452067]
[1766111522997,0.58782,85657.0,85642.0,0.2452067]
[1766111523209,0.469828,85649.0,85637.0,0.01755719]
[1766111523419,0.469828,85649.0,85637.0,0.00588]
[1766111523626,0.469828,85649.0,85638.0,0.01167705]
[1766111523835,1.057648,85649.0,85637.0,0.01755719]
[1766111524065,1.057648,85649.0,85638.0,0.01167705]
[1766111524688,0.00588,85656.0,85639.0,0.01167692]
[1766111524886,0.5937,85656.0,85640.0,0.01167678]
[1766111525100,0.5937,85656.0,85641.0,0.01167665]
[1766111525298,0.58782,85653.0,85637.0,0.00588]
[1766111525503,0.47063,85646.0,85632.0,0.01167787]
[1766111525758,0.58782,85643.0,85633.0,0.01755774]
[1766111526041,0.47063,85644.0,85635.0,0.23354692]
[1766111526174,0.5937,85648.0,85635.0,0.24522438]
[1766111526376,0.47063,85647.0,85635.0,0.01167746]
[1766111526622,0.58782,85646.0,85635.0,0.01167746]
[1766111527204,0.58782,85645.0,85634.0,0.24522963]
[1766111527379,0.58782,85645.0,85635.0,0.01167746]
[1766111527609,0.58782,85645.0,85636.0,0.01167733]
[1766111528006,0.47063,85646.0,85638.0,0.01167705]
[1766111528202,0.58782,85650.0,85639.0,0.00588]
[1766111528610,0.58782,85650.0,85640.0,0.01167678]
[1766111528843,0.00588,85652.0,85640.0,0.01167678]
[1766111529058,0.00588,85652.0,85639.0,0.00588]
[1766111529255,0.00588,85652.0,85639.0,0.01755692]
[1766111529458,0.00588,85652.0,85639.0,0.00588]
[1766111530065,0.00588,85652.0,85640.0,0.01167678]
[1766111530206,0.00588,85652.0,85639.0,0.50581]
[1766111530659,0.47063,85655.0,85639.0,0.50581]
[1766111530868,0.47063,85655.0,85641.0,0.01167665]
[1766111531389,0.58782,85652.0,85639.0,0.00588]
[1766111531536,0.47063,85650.0,85639.0,0.01755692]
[1766111531739,0.58782,85649.0,85639.0,0.01755692]
[1766111532330,0.58782,85649.0,85640.0,0.01167678]
[1766111532527,0.58782,85649.0,85641.0,1e-08]
[1766111532725,0.59511,85654.0,85641.0,1e-08]
[1766111532951,0.49096,85651.0,85641.0,1e-08]
[1766111533151,0.49096,85648.0,85641.0,1e-08]
[1766111533354,0.59511,85646.0,85641.0,1e-08]
[1766111533727,0.11696828,85669.0,85641.0,1e-08]
[1766111533728,0.49096,85665.0,85646.0,0.001099]
[1766111533930,0.00588,85666.0,85659.0,0.24515758]
[1766111534156,0.59511,85668.0,85660.0,0.01167406]
[1766111534362,0.59511,85666.0,85656.0,0.00588]
[1766111534563,0.59511,85661.0,85656.0,0.00588]
[1766111535203,0.59547737,85661.0,85656.0,0.00588]
[1766111535649,0.59547737,85661.0,85645.0,0.24519655]
[1766111535650,0.49096,85660.0,85645.0,0.24519655]
[1766111535840,1.08607,85657.0,85648.0,0.00588]
[1766111536041,0.59511,85656.0,85648.0,0.01755569]
[1766111536785,0.59511,85656.0,85648.0,0.00588]
[1766111536954,0.49096,85653.0,85648.0,0.00588]
[1766111537154,1.08607,85653.0,85648.0,0.00588]
[1766111537784,0.00588,85657.0,85638.0,0.39301591]
[1766111537966,0.49096,85655.0,85639.0,0.23941811]
[1766111538322,0.59511,85651.0,85640.0,0.01167678]
[1766111538528,0.59511,85651.0,85642.0,0.01167651]
[1766111538827,0.59511,85651.0,85643.0,0.01167637]
[1766111539090,0.59511,85651.0,85641.0,0.01167665]
[1766111539322,0.59511,85651.0,85642.0,0.01167651]
[1766111540100,0.59511,85651.0,85641.0,0.01167665]
[1766111540309,0.00588,85657.0,85639.0,0.00588]
[1766111540310,1.08607,85649.0,85639.0,0.00588]
[1766111540539,1.08607,85648.0,85639.0,0.01755692]
[1766111540743,0.59511,85647.0,85639.0,0.01755692]
[1766111540945,0.59511,85647.0,85642.0,0.01167651]
[1766111541121,0.49096,85648.0,85643.0,0.01167637]
[1766111541294,0.00588,85657.0,85643.0,0.01167637]
[1766111541295,0.49096,85656.0,85643.0,0.01167637]
[1766111541501,0.49096,85656.0,85644.0,0.01167624]
[1766111542262,0.49096,85656.0,85645.0,0.0116761]
[1766111542610,0.49096,85656.0,85646.0,0.01167596]
[1766111542809,0.00588,85655.0,85647.0,0.01167583]
[1766111543079,0.00588,85655.0,85649.0,0.01167555]
[1766111543219,0.49096,85656.0,85648.0,0.01167569]
[1766111543420,0.59511,85655.0,85645.0,0.00588]
[1766111543985,0.59511,85651.0,85639.0,0.01167692]
[1766111544193,0.59511,85647.0,85642.0,0.00588]
[1766111544605,0.49096,85647.0,85642.0,0.00588]
[1766111544822,0.59511,85646.0,85642.0,0.00588]
[1766111545021,0.00588,85656.0,85642.0,0.00588]
[1766111545022,0.59511,85655.0,85642.0,0.00588]
[1766111545203,0.49096,85654.0,85642.0,0.23940979]
[1766111545415,0.59511,85651.0,85642.0,0.00588]
[1766111545613,0.00588,85656.0,85646.0,0.24519293]
[1766111545906,0.00588,85656.0,85646.0,0.01167596]
[1766111545907,0.49684,85656.0,85646.0,0.01167596]
[1766111546063,0.49096,85654.0,85644.0,0.24519923]
[1766111546269,0.49096,85652.0,85643.0,0.01167637]
[1766111546466,0.49096,85652.0,85642.0,0.00588]
[1766111546669,0.59511,85647.0,85641.0,0.00588]
[1766111546872,1.08607,85647.0,85641.0,0.00588]
[1766111547068,0.59511,85646.0,85641.0,0.00588]
[1766111547474,1.08607,85646.0,85635.0,0.23354919]
[1766111547808,0.59511,85645.0,85636.0,0.00588]
[1766111548028,0.59511,85645.0,85637.0,0.01167719]
[1766111548207,0.59511,85645.0,85636.0,0.00588]
[1766111548407,0.59511,85645.0,85637.0,0.24522087]
[1766111548614,0.59511,85645.0,85639.0,0.01167692]
[1766111548817,0.49096,85646.0,85640.0,0.01167678]
[1766111549014,0.60099,85651.0,85641.0,0.01167665]
[1766111549211,0.59511,85650.0,85641.0,0.01167665]
[1766111549834,1.08607,85650.0,85643.0,0.01167637]
[1766111550049,0.59511,85655.0,85643.0,0.01167637]
[1766111550193,0.00588,85651.0,85644.0,0.01167624]
[1766111550408,0.00588,85651.0,85646.0,0.01167596]
[1766111551340,0.49096,85655.0,85646.0,0.01167596]
[1766111551539,0.0907,85669.0,85647.0,0.24519224]
[1766111551754,0.00588,85660.0,85646.0,0.01167596]
[1766111551911,0.59547737,85661.0,85648.0,0.01167569]
[1766111552121,0.59547737,85661.0,85647.0,0.71704006]
[1766111552122,0.00588,85660.0,85647.0,0.71704006]
[1766111552314,0.00588,85660.0,85647.0,0.47185]
[1766111552552,0.60099,85660.0,85647.0,0.48352583]
[1766111552752,0.60099,85660.0,85649.0,0.01167555]
[1766111552932,0.60099,85660.0,85648.0,0.01167569]
[1766111553345,0.60099,85660.0,85649.0,0.01167555]
[1766111553525,0.59511,85660.0,85652.0,0.01167515]
[1766111553726,0.0907,85671.0,85659.0,0.2334819]
[1766111553727,0.00588,85666.0,85659.0,0.2334819]
[1766111553928,0.00592286,85666.0,85653.0,0.47773]
[1766111554111,0.00592286,85666.0,85657.0,0.23348822]
[1766111554519,0.00592286,85666.0,85657.0,0.01167446]
[1766111554829,0.00592286,85666.0,85656.0,0.24516653]
[1766111555154,0.001099,85656.0,85653.0,0.00588]
[1766111555570,0.59511,85662.0,85653.0,0.00588]
[1766111555571,0.59511,85665.0,85654.0,0.23349658]
[1766111555781,0.59511,85665.0,85655.0,0.01167474]
[1766111555968,0.59511,85665.0,85653.0,0.48940501]
[1766111556179,0.49688286,85666.0,85638.0,0.63615]
[1766111556180,0.49096,85661.0,85638.0,0.63615]
[1766111556386,0.00592286,85666.0,85638.0,0.1478]
[1766111556387,0.59511,85649.0,85638.0,0.1478]
[1766111556693,0.59511,85645.0,85638.0,0.00588]
[1766111556893,0.59511,85644.0,85638.0,0.00588]
[1766111557833,0.00588,85653.0,85638.0,0.00588]
[1766111557834,0.59511,85652.0,85638.0,0.00588]
[1766111557990,0.00588,85653.0,85638.0,0.00588]
[1766111558596,0.49096,85652.0,85641.0,0.01167665]
[1766111558799,0.49096,85652.0,85638.0,0.00588]
[1766111558800,0.59511,85651.0,85640.0,0.23353319]
[1766111558984,0.59511,85651.0,85640.0,0.23353486]
[1766111559187,0.59511,85650.0,85641.0,0.01167665]
[1766111559828,0.00588,85653.0,85640.0,0.01167678]
[1766111560032,1.08607,85652.0,85639.0,0.01167692]
[1766111560234,0.00588,85653.0,85640.0,0.01167678]
[1766111560443,0.59511,85650.0,85641.0,0.2452083]
[1766111560640,0.59511,85650.0,85642.0,0.01167651]
[1766111561416,0.59511,85650.0,85641.0,0.24520815]
[1766111561646,0.59511,85650.0,85641.0,0.01167665]
[1766111562036,0.59511,85650.0,85642.0,0.01167651]
[1766111562270,0.59511,85650.0,85641.0,0.01167665]
[1766111563281,0.60099,85650.0,85643.0,0.01167637]
[1766111563485,0.60099,85650.0,85642.0,0.24520643]
[1766111563722,0.60099,85650.0,85643.0,0.01167637]
[1766111564076,0.60099,85650.0,85642.0,0.24520643]
[1766111564401,0.60099,85650.0,85643.0,0.24520371]
[1766111564563,0.60099,85650.0,85642.0,0.24520643]
[1766111565154,0.46656,85649.0,85642.0,0.24520643]
[1766111565385,1.03982,85649.0,85643.0,0.01167637]
[1766111565596,0.00588,85650.0,85626.0,0.01167869]
[1766111565597,0.46656,85640.0,85626.0,0.01167869]
[1766111565844,0.46656,85635.0,85627.0,0.00588]
[1766111565974,0.57326,85634.0,85627.0,0.00588]
[1766111566497,0.46656,85626.0,85615.0,0.01168019]
[1766111566726,0.57326,85624.0,85617.0,0.01167992]
[1766111566910,5.567e-05,85626.0,85620.0,0.24526864]
[1766111567114,5.567e-05,85626.0,85620.0,0.01167951]
[1766111567374,5.567e-05,85626.0,85623.0,0.0116791]
[1766111567520,5.567e-05,85626.0,85622.0,0.01167924]
[1766111567730,5.567e-05,85626.0,85622.0,0.24526261]
[1766111567927,5.567e-05,85626.0,85622.0,0.01167924]
[1766111568139,5.567e-05,85626.0,85623.0,0.0116791]
[1766111568350,5.567e-05,85626.0,85623.0,0.24526111]
[1766111568526,5.567e-05,85626.0,85623.0,0.0116791]
[1766111568734,5.567e-05,85626.0,85622.0,0.01167924]
[1766111569133,0.001099,85622.0,85614.0,0.01168033]
[1766111569335,0.001099,85622.0,85613.0,0.01168046]
[1766111569539,0.57326,85620.0,85601.0,0.08189038]
[1766111569767,0.00588,85622.0,85602.0,0.00588]
[1766111569768,0.70322048,85611.0,85602.0,0.00588]
[1766111569965,0.70322048,85611.0,85599.0,0.01756237]
[1766111570173,1.03982,85610.0,85601.0,0.0116821]
[1766111570369,1.03982,85610.0,85602.0,0.01168197]
[1766111570573,0.00588,85613.0,85608.0,1e-08]
[1766111570812,0.57914,85613.0,85608.0,1e-08]
[1766111571027,0.57914,85613.0,85609.0,0.01168101]
[1766111571217,0.00588,85613.0,85608.0,1e-08]
[1766111573367,0.00588,85613.0,85608.0,0.01168116]
[1766111573572,0.0907,85627.0,85610.0,0.01168087]
[1766111573716,0.00588,85625.0,85611.0,0.01401689]
[1766111573916,0.00588,85625.0,85616.0,0.01168005]
[1766111574329,0.00588,85625.0,85612.0,0.48834994]
[1766111574504,0.00588,85625.0,85618.0,0.01167978]
[1766111574710,0.0907,85632.0,85617.0,0.24527828]
[1766111574913,0.57326,85624.0,85620.0,0.01167951]
[1766111575219,0.57326,85623.0,85618.0,0.01167978]
[1766111575555,0.00588,85625.0,85617.0,0.01167992]
[1766111575761,0.57326,85620.0,85611.0,0.00588]
[1766111575964,0.00588,85625.0,85613.0,0.58294]
[1766111576171,0.00588,85625.0,85615.0,0.58294]
[1766111576374,0.00588,85625.0,85614.0,0.47330003]
[1766111576785,0.00588,85625.0,85614.0,0.04785003]
[1766111577405,0.001099,85614.0,85604.0,0.00588]
[1766111577610,0.00588,85619.0,85604.0,0.58882]
[1766111578038,0.00588,85619.0,85604.0,0.60050169]
[1766111578334,0.00588,85619.0,85606.0,0.01168142]
[1766111578530,0.00588,85619.0,85607.0,0.59462128]
[1766111578732,0.00588,85619.0,85608.0,0.50834115]
[1766111579029,0.00588,85622.0,85614.0,0.49666]
[1766111581624,0.00588,85622.0,85611.0,0.00588]
[1766111581962,0.57914,85622.0,85611.0,0.00588]
[1766111582364,0.59574,85619.0,85611.0,0.00588]
[1766111582768,0.00588,85622.0,85611.0,0.00588]
[1766111583529,0.00588,85622.0,85611.0,0.01756074]
[1766111583729,0.00588,85622.0,85611.0,0.00588]
[1766111584134,0.59574,85621.0,85611.0,0.00588]
[1766111584313,0.59574,85620.0,85611.0,0.00588]
[1766111584509,1.04975,85619.0,85611.0,0.00588]
[1766111585441,0.00588,85622.0,85611.0,0.00588]
[1766111585896,0.00588,85622.0,85611.0,0.01756074]
[1766111586070,0.00588,85622.0,85613.0,0.01168046]
[1766111586245,0.00588,85622.0,85611.0,0.01756074]
[1766111586821,0.00588,85622.0,85611.0,0.00588]
[1766111587443,0.45401,85620.0,85611.0,0.00588]
[1766111588082,0.45401,85620.0,85612.0,0.23361133]
[1766111588286,0.45401,85620.0,85611.0,0.00588]
[1766111588573,0.00588,85622.0,85611.0,0.01756074]
[1766111588772,0.00588,85622.0,85611.0,0.25117488]
[1766111589393,0.00588,85622.0,85612.0,0.0116806]
[1766111590053,0.00588,85622.0,85608.0,0.85921208]
[1766111590054,0.94446011,85622.0,85592.0,0.01168333]
[1766111590231,1.04975,85611.0,85596.0,0.01168278]
[1766111590381,0.09075567,85626.0,85596.0,0.01168278]
[1766111590382,0.59574,85606.0,85596.0,0.00588]
[1766111590789,0.59574,85606.0,85596.0,0.01756278]
[1766111591128,0.59574,85606.0,85596.0,0.25121833]
[1766111591490,0.59574,85606.0,85597.0,0.01168265]
[1766111591693,0.59574,85606.0,85596.0,0.00588]
[1766111592204,0.59574,85606.0,85596.0,0.01756278]
[1766111592746,0.59574,85606.0,85596.0,0.00588]
[1766111594070,0.4625,85605.0,85596.0,0.00588]
[1766111594250,0.61163,85600.0,85591.0,0.00588]
[1766111595177,0.0907,85610.0,85598.0,0.01168251]
[1766111595334,0.0907,85610.0,85598.0,0.48126737]
[1766111595335,0.00588,85609.0,85598.0,0.48126737]
[1766111595538,0.0907,85610.0,85601.0,0.4809]
[1766111595852,0.00588,85609.0,85603.0,0.56488]
[1766111596054,0.00588,85609.0,85602.0,0.7262205]
[1766111596390,0.0907,85614.0,85604.0,0.01168169]
[1766111596521,0.0907,85614.0,85602.0,0.24532117]
[1766111596522,0.00588,85613.0,85602.0,0.01168197]
[1766111596941,0.00588,85613.0,85601.0,0.00588]
[1766111597337,0.0907,85612.0,85601.0,0.00588]
[1766111597549,0.00588,85622.0,85606.0,0.01168142]
[1766111597754,0.00588,85621.0,85608.0,0.4809]
[1766111597954,0.00588,85621.0,85609.0,0.01168101]
[1766111598186,0.00588,85621.0,85610.0,0.01168087]
[1766111598462,0.00588,85621.0,85609.0,0.01168101]
[1766111598671,0.00588,85621.0,85610.0,0.01168087]
[1766111599051,0.00588,85621.0,85611.0,0.01168074]
[1766111599256,0.00588,85621.0,85611.0,0.24529454]
[1766111599464,1.07413,85626.0,85613.0,0.24502905]
[1766111599616,1.07413,85626.0,85612.0,0.0116806]
[1766111599617,0.4625,85637.0,85621.0,0.01167937]
[1766111599862,0.09658,85636.0,85623.0,0.0116791]
[1766111600067,0.09658,85636.0,85622.0,0.4809]
[1766111600669,0.0907,85634.0,85622.0,0.4809]
[1766111600871,0.0907,85632.0,85618.0,0.00588]
[1766111601048,0.001099,85622.0,85618.0,0.00588]
[1766111601259,0.0907,85632.0,85618.0,0.00588]
[1766111603792,0.00588,85631.0,85618.0,0.00588]
[1766111603993,0.0907,85630.0,85618.0,0.00588]
[1766111604200,0.0907,85629.0,85618.0,0.00588]
[1766111604630,1.07413,85630.0,85610.0,0.72619813]
[1766111604631,0.001099,85618.0,85610.0,0.00588]
[1766111604843,1.07413,85617.0,85610.0,0.00588]
[1766111605042,0.00588,85623.0,85607.0,0.00588]
[1766111605243,0.00588,85623.0,85605.0,0.00588]
[1766111605474,0.61163,85613.0,85605.0,0.00588]
[1766111605687,0.61163,85611.0,85600.0,0.00588]
[1766111606444,1.07413,85611.0,85600.0,0.00588]
[1766111606650,1.07413,85611.0,85598.0,0.01204988]
[1766111606843,1.07413,85611.0,85598.0,0.00036737]
[1766111607288,0.61163,85610.0,85598.0,0.00036737]
[1766111607495,1.07413,85610.0,85598.0,0.00036737]
[1766111608188,0.61163,85609.0,85598.0,0.00036737]
[1766111608360,0.61163,85607.0,85598.0,0.00036737]
[1766111608568,0.4625,85604.0,85596.0,0.00588]
[1766111608744,0.61163,85603.0,85596.0,0.00599009]
[1766111608948,0.00588,85606.0,85596.0,0.00599009]
[1766111609151,0.61163,85603.0,85596.0,0.00599009]
[1766111609332,0.4625,85601.0,85591.0,0.00588]
[1766111609543,0.61163,85600.0,85591.0,0.00599026]
[1766111610007,0.00588,85606.0,85594.0,0.01168306]
[1766111610276,0.00588,85606.0,85594.0,0.4809]
[1766111610477,0.4625,85609.0,85594.0,0.4809]
[1766111610682,0.00588,85605.0,85594.0,0.4809]
[1766111610906,1.07413,85608.0,85594.0,0.4809]
[1766111611136,0.00588,85604.0,85595.0,0.23365609]
[1766111611348,0.00588,85604.0,85597.0,0.01168265]
[1766111611576,0.0907,85618.0,85602.0,0.23363789]
[1766111611796,0.23339018,85694.0,85646.0,0.56488]
[1766111612108,0.0468,85692.0,85660.0,0.01167406]
[1766111612307,1.12093,85692.0,85669.0,0.4809]
[1766111612536,0.61163,85688.0,85680.0,0.00099999]
[1766111612746,0.61163,85686.0,85680.0,9.9e-07]
[1766111612966,0.4625,85689.0,85680.0,9.9e-07]
[1766111613183,0.00036767,85686.0,85680.0,9.9e-07]
[1766111613404,0.00036767,85686.0,85681.0,0.05001839]
[1766111613836,0.00036767,85686.0,85680.0,0.05001938]
[1766111614049,0.00588,85692.0,85680.0,0.05001839]
[1766111614258,0.61163,85690.0,85679.0,0.00588]
[1766111614472,0.61163,85687.0,85679.0,0.00588]
[1766111614679,0.00599019,85692.0,85670.0,0.01167269]
[1766111614890,0.61163,85686.0,85664.0,0.23346833]
[1766111615108,0.61163,85684.0,85675.0,0.01167201]
[1766111615312,0.64000734,85690.0,85682.0,0.01167106]
[1766111615518,0.64000734,85690.0,85678.0,0.01167161]
[1766111615722,0.64000734,85690.0,85676.0,2.55e-06]
[1766111615928,0.4625,85687.0,85676.0,0.23344015]
[1766111616136,0.61163,85686.0,85676.0,0.23343775]
[1766111616344,0.61163,85686.0,85679.0,0.01167147]
[1766111616552,0.61163,85686.0,85678.0,2.76e-06]
[1766111616756,0.61163,85686.0,85678.0,0.01167436]
[1766111617164,0.61163,85686.0,85679.0,0.01167147]
[1766111617367,0.61163,85686.0,85681.0,1e-08]
[1766111617567,0.61762019,85692.0,85678.0,0.01167436]
[1766111617758,0.61163,85688.0,85673.0,0.01167228]
[1766111617899,0.61163,85688.0,85678.0,0.0057916]
[1766111618111,0.00029057,85681.0,85678.0,0.0116716]
[1766111618319,0.00588,85686.0,85678.0,0.0116716]
[1766111618536,0.00588,85686.0,85677.0,0.00977383]
[1766111618757,0.00588,85686.0,85670.0,0.24512484]
[1766111618972,0.61163,85680.0,85669.0,0.01167283]
[1766111619189,0.61751,85680.0,85666.0,0.00588]
[1766111619417,0.61751,85680.0,85663.0,0.01167365]
[1766111619639,0.00588,85680.0,85653.0,0.01167501]
[1766111619847,0.61163,85670.0,85654.0,0.01755487]
[1766111619999,0.07002719,85671.0,85654.0,0.01755487]
[1766111620000,0.61163,85668.0,85654.0,0.00588]
[1766111620199,0.61163,85668.0,85653.0,0.01167501]
[1766111620607,0.61163,85668.0,85652.0,0.01755515]
[1766111621006,0.61163,85661.0,85643.0,0.23352613]
[1766111621207,0.61163,85661.0,85636.0,0.23354547]
[1766111621208,0.61163,85661.0,85646.0,0.01167596]
[1766111621415,0.61163,85661.0,85647.0,0.01167583]
[1766111621616,0.61163,85661.0,85648.0,0.01167569]
[1766111622190,0.61064113,85661.0,85652.0,0.01167515]
[1766111622405,0.61064113,85661.0,85647.0,0.01167583]
[1766111622951,0.61064113,85661.0,85648.0,0.01167569]
[1766111623390,0.61064113,85661.0,85647.0,0.01167583]
[1766111624268,0.61064113,85661.0,85650.0,0.01167542]
[1766111624430,0.61064113,85661.0,85648.0,0.24518751]
[1766111624646,0.61064113,85661.0,85649.0,0.01167555]
[1766111624850,0.61064113,85661.0,85648.0,0.01167569]
[1766111625028,0.61064113,85661.0,85647.0,0.01167583]
[1766111625435,0.61064113,85661.0,85648.0,0.01167569]
[1766111625865,0.61064113,85661.0,85649.0,0.01167555]
[1766111626063,0.61064113,85661.0,85648.0,0.01167569]
[1766111626646,0.61064113,85661.0,85649.0,0.01167555]
[1766111627282,0.61064113,85661.0,85650.0,0.01167542]
[1766111627483,0.43461045,85661.0,85650.0,0.01167542]
[1766111627712,0.43461045,85661.0,85647.0,0.01167583]
[1766111627884,0.43461045,85661.0,85646.0,0.00588]
[1766111628484,0.43461045,85661.0,85643.0,0.05001839]
[1766111628485,0.64000734,85660.0,85643.0,0.05001839]
[1766111628739,0.00011013,85661.0,85629.0,0.01167828]
[1766111628740,0.64000734,85653.0,85629.0,0.01167828]
[1766111628928,0.00588,85652.0,85633.0,0.05001839]
[1766111629285,0.00588,85652.0,85630.0,0.00588]
[1766111629509,0.61633,85651.0,85630.0,0.00588]
[1766111629886,0.61633,85651.0,85631.0,0.24523814]
[1766111630226,0.61633,85651.0,85633.0,0.01167774]
[1766111630655,0.00011013,85661.0,85634.0,0.5875576]
[1766111630774,0.66309,85657.0,85637.0,0.45103]
[1766111630996,0.0907,85659.0,85639.0,0.57588]
[1766111631202,0.00588,85658.0,85645.0,0.0116761]
[1766111631405,0.61633,85657.0,85641.0,0.01167665]
[1766111631602,0.61633,85657.0,85641.0,0.23353283]
[1766111631829,0.61633,85657.0,85641.0,0.24520948]
[1766111632029,0.61633,85657.0,85644.0,0.01167624]
[1766111632430,0.61633,85657.0,85641.0,0.24520948]
[1766111633312,0.61633,85657.0,85640.0,0.46270678]
[1766111633675,0.61633,85657.0,85641.0,0.01167665]